fUSD/lending_fUSD_20250826
["ID","MTS","AMOUNT","RATE_DAILY","PERIOD"]
[381484208,1756230731805,-400.0,0.00028219,2]
[381484209,1756230731815,-400.0,0.00028219,5]
[381484210,1756230731827,-1136.12,0.00028219,5]
[381484211,1756230731837,-400.0,0.00028219,5]
[381484212,1756230731846,-400.0,0.00028219,5]
[381484213,1756230731856,-400.0,0.00028219,5]
[381484214,1756230731865,-400.0,0.00028219,5]
[381484215,1756230731874,-1388.02,0.00028219,5]
[381484216,1756230731884,-851.42,0.00028219,5]
[381484217,1756230731893,-790.48,0.00028219,5]
[381484218,1756230731902,-424.81,0.00028219,5]
[381484219,1756230731912,-1031.7,0.00028219,5]
[381484220,1756230731921,-400.0,0.00028219,5]
[381484221,1756230731931,-978.35,0.00028219,5]
[381484222,1756230731940,-400.0,0.00028219,5]
[381484223,1756230731949,-400.0,0.00028219,5]
[381484224,1756230731958,-835.03,0.00028219,5]
[381484225,1756230731968,-400.0,0.00028219,5]
[381484226,1756230731977,-686.76,0.00028219,5]
[381484227,1756230731986,-1052.63,0.00028219,5]
[381484228,1756230731998,-400.0,0.00028219,5]
[381484229,1756230732008,-1326.59,0.00028219,5]
[381484230,1756230732018,-463.9,0.00028219,5]
[381484231,1756230732028,-400.0,0.00028219,5]
[381484232,1756230732037,-441.77,0.00028219,5]
[381484233,1756230732046,-1026.11,0.00028219,5]
[381484234,1756230732055,-400.0,0.00028219,5]
[381484235,1756230732065,-400.0,0.00028219,5]
[381484236,1756230732075,-510.24,0.00028219,5]
[381484237,1756230732085,-400.0,0.00028219,5]
[381484238,1756230732095,-400.0,0.00028219,5]
[381484239,1756230732104,-400.0,0.00028219,5]
[381484240,1756230732113,-225.69609236,0.00028219,5]
[381484241,1756230732122,-1032.18,0.00028219,5]
[381484242,1756230732131,-1025.85,0.00028219,5]
[381484243,1756230732140,-400.0,0.00028219,5]
[381484244,1756230732150,-682.58,0.00028219,5]
[381484245,1756230732159,-682.08,0.00028219,5]
[381484246,1756230732169,-400.0,0.00028219,5]
[381484247,1756230732178,-611.11,0.00028219,5]
[381484248,1756230732187,-1988.35,0.00028219,5]
[381484249,1756230732197,-507.58,0.00028219,5]
[381484250,1756230732207,-707.77,0.00028219,5]
[381484251,1756230732217,-671.23,0.00028219,5]
[381484252,1756230732226,-400.0,0.00028219,5]
[381484253,1756230732237,-400.0,0.00028219,5]
[381484254,1756230732247,-414.02,0.00028219,5]
[381484255,1756230732259,-1108.22,0.00028219,5]
[381484256,1756230732270,-620.36,0.00028219,5]
[381484257,1756230732280,-674.7,0.00028219,5]
[381484258,1756230732291,-1696.44,0.00028219,5]
[381484259,1756230732303,-400.0,0.00028219,5]
[381484260,1756230732314,-1262.19,0.00028219,5]
[381484261,1756230732325,-400.0,0.00028219,5]
[381484262,1756230732335,-994.58,0.00028219,5]
[381484263,1756230732345,-1451.77,0.00028219,5]
[381484264,1756230732355,-400.0,0.00028219,5]
[381484265,1756230732364,-838.64,0.00028219,5]
[381484266,1756230732373,-400.0,0.00028219,5]
[381484267,1756230732383,-400.0,0.00028219,5]
[381484268,1756230732393,-1320.14,0.00028219,5]
[381484269,1756230732402,-400.0,0.00028219,5]
[381484270,1756230732411,-1171.83,0.00028219,5]
[381484271,1756230732420,-400.0,0.00028219,5]
[381484272,1756230732429,-400.0,0.00028219,5]
[381484273,1756230732438,-1229.77,0.00028219,5]
[381484274,1756230732447,-1055.35,0.00028219,5]
[381484275,1756230732456,-400.0,0.00028219,5]
[381484276,1756230732465,-400.0,0.00028219,5]
[381484277,1756230732475,-490.51,0.00028219,5]
[381484278,1756230732486,-451.3,0.00028219,5]
[381484279,1756230732496,-654.35,0.00028219,5]
[381484280,1756230732505,-400.0,0.00028219,5]
[381484281,1756230732515,-1305.09,0.00028219,5]
[381484282,1756230732524,-400.0,0.00028219,5]
[381484283,1756230732534,-715.4,0.00028219,5]
[381484284,1756230732542,-400.0,0.00028219,5]
[381484285,1756230732551,-1150.93,0.00028219,5]
[381484286,1756230732560,-486.06,0.00028219,5]
[381484287,1756230732570,-1447.76,0.00028219,5]
[381484288,1756230732579,-1190.31,0.00028219,5]
[381484289,1756230732588,-400.0,0.00028219,5]
[381484290,1756230732598,-400.0,0.00028219,5]
[381484291,1756230732607,-1053.64,0.00028219,5]
[381484292,1756230732617,-1314.02,0.00028219,5]
[381484293,1756230732626,-737.44,0.00028219,5]
[381484294,1756230732636,-400.0,0.00028219,5]
[381484295,1756230732646,-710.08,0.00028219,5]
[381484296,1756230732657,-867.06,0.00028219,5]
[381484297,1756230732671,-400.0,0.00028219,5]
[381484298,1756230732680,-400.0,0.00028219,5]
[381484299,1756230732690,-2794.66,0.00028219,5]
[381484300,1756230732700,-518.85,0.00028219,5]
[381484301,1756230732711,-831.22,0.00028219,5]
[381484302,1756230732720,-522.78,0.00028219,5]
[381484303,1756230732730,-1002.86,0.00028219,5]
[381484304,1756230732745,-400.0,0.00028219,5]
[381484305,1756230732755,-966.97,0.00028219,5]
[381484306,1756230732765,-506.44,0.00028219,5]
[381484307,1756230732774,-777.45,0.00028219,5]
[381484308,1756230732784,-400.0,0.00028219,5]
[381484309,1756230732793,-415.74,0.00028219,5]
[381484310,1756230732802,-728.92,0.00028219,5]
[381484311,1756230732811,-1380.42,0.00028219,5]
[381484312,1756230732821,-1382.78,0.00028219,5]
[381484313,1756230732831,-400.0,0.00028219,5]
[381484314,1756230732841,-1552.27,0.00028219,5]
[381484315,1756230732851,-411.47,0.00028219,5]
[381484316,1756230732860,-878.37,0.00028219,5]
[381484317,1756230732870,-400.0,0.00028219,5]
[381484318,1756230732879,-1109.68,0.00028219,5]
[381484319,1756230732888,-772.05,0.00028219,5]
[381484320,1756230732898,-1195.33,0.00028219,5]
[381484321,1756230732908,-650.21,0.00028219,5]
[381484322,1756230732918,-3396.04,0.00028219,5]
[381484323,1756230732927,-400.0,0.00028219,5]
[381484324,1756230732936,-524.42,0.00028219,5]
[381484325,1756230732946,-663.26,0.00028219,5]
[381484326,1756230732956,-400.0,0.00028219,5]
[381484327,1756230732966,-400.0,0.00028219,5]
[381484328,1756230732975,-400.0,0.00028219,5]
[381484329,1756230732985,-400.0,0.00028219,5]
[381484330,1756230732994,-1074.25,0.00028219,7]
[381484331,1756230733004,-979.78,0.00028219,5]
[381484332,1756230733013,-773.75,0.00028219,5]
[381484333,1756230733023,-936.41,0.00028219,5]
[381484334,1756230733032,-669.79,0.00028219,5]
[381484335,1756230733041,-1622.1,0.00028219,5]
[381484336,1756230733050,-406.22,0.00028219,5]
[381484337,1756230733061,-400.0,0.00028219,5]
[381484338,1756230733070,-901.22,0.00028219,5]
[381484339,1756230733080,-400.0,0.00028219,5]
[381484340,1756230733091,-1367.67,0.00028219,5]
[381484341,1756230733100,-742.95,0.00028219,5]
[381484342,1756230733112,-400.0,0.00028219,5]
[381484343,1756230733121,-400.0,0.00028219,5]
[381484344,1756230733132,-483.95200977,0.00028219,5]
[381484345,1756230733142,-909.97,0.00028219,5]
[381484346,1756230733151,-400.0,0.00028219,5]
[381484347,1756230733160,-400.0,0.00028219,5]
[381484348,1756230733169,-1346.04,0.00028219,5]
[381484349,1756230733179,-400.0,0.00028219,5]
[381484350,1756230733189,-1159.55,0.00028219,5]
[381484351,1756230733199,-1144.5,0.00028219,5]
[381484352,1756230733209,-400.0,0.00028219,5]
[381484353,1756230733218,-400.0,0.00028219,5]
[381484354,1756230733228,-400.0,0.00028219,5]
[381484355,1756230733239,-957.94,0.00028219,5]
[381484356,1756230733248,-1349.87,0.00028219,5]
[381484357,1756230733257,-400.0,0.00028219,5]
[381484358,1756230733267,-400.0,0.00028219,5]
[381484359,1756230733278,-746.51,0.00028219,5]
[381484360,1756230733288,-646.69,0.00028219,5]
[381484361,1756230733297,-210.07175267,0.00028219,5]
[381484362,1756230733306,-400.0,0.00028219,5]
[381484363,1756230733315,-1218.8,0.00028219,5]
[381484364,1756230733324,-400.0,0.00028219,5]
[381484365,1756230733335,-400.0,0.00028219,5]
[381484366,1756230733344,-803.65,0.00028219,5]
[381484367,1756230733354,-179.05430434,0.00028219,5]
[381484368,1756230733363,-400.0,0.00028219,5]
[381484369,1756230733372,-486.65,0.00028219,5]
[381484370,1756230733381,-802.89,0.00028219,5]
[381484371,1756230733391,-1750.37,0.00028219,5]
[381484372,1756230733401,-595.5,0.00028219,5]
[381484373,1756230733410,-473.57,0.00028219,5]
[381484374,1756230733420,-400.0,0.00028219,5]
[381484375,1756230733429,-400.0,0.00028219,5]
[381484376,1756230733439,-400.0,0.00028219,5]
[381484377,1756230733448,-1034.18,0.00028219,5]
[381484378,1756230733457,-3322.0,0.00028219,5]
[381484379,1756230733466,-584.57,0.00028219,5]
[381484380,1756230733476,-400.0,0.00028219,5]
[381484381,1756230733487,-567.64,0.00028219,5]
[381484382,1756230733496,-347.984652,0.00028219,5]
[381484383,1756230733506,-1292.44,0.00028219,5]
[381484384,1756230733515,-1068.12,0.00028219,5]
[381484385,1756230733524,-679.23,0.00028219,5]
[381484386,1756230733533,-1261.88,0.00028219,5]
[381484387,1756230733543,-458.84,0.00028219,5]
[381484388,1756230733552,-400.0,0.00028219,5]
[381484389,1756230733561,-400.0,0.00028219,5]
[381484390,1756230733571,-400.0,0.00028219,5]
[381484391,1756230733580,-1122.85,0.00028219,5]
[381484392,1756230733589,-400.0,0.00028219,5]
[381484393,1756230733598,-400.0,0.00028219,5]
[381484394,1756230733608,-400.0,0.00028219,5]
[381484395,1756230733618,-400.0,0.00028219,5]
[381484396,1756230733629,-736.74,0.00028219,5]
[381484397,1756230733638,-849.73,0.00028219,5]
[381484398,1756230733647,-400.0,0.00028219,5]
[381484399,1756230733656,-598.7,0.00028219,5]
[381484400,1756230733670,-400.0,0.00028219,5]
[381484401,1756230733679,-400.0,0.00028219,5]
[381484402,1756230733688,-400.0,0.00028219,5]
[381484403,1756230733698,-1491.81,0.00028219,5]
[381484404,1756230733710,-750.42,0.00028219,5]
[381484405,1756230733719,-400.0,0.00028219,5]
[381484406,1756230733728,-632.76,0.00028219,5]
[381484407,1756230733741,-463.02,0.00028219,5]
[381484408,1756230733750,-401.33774297,0.00028219,5]
[381484409,1756230733759,-400.0,0.00028219,5]
[381484410,1756230733769,-400.0,0.00028219,5]
[381484411,1756230733779,-1105.29,0.00028219,5]
[381484412,1756230733788,-400.0,0.00028219,5]
[381484413,1756230733797,-400.0,0.00028219,5]
[381484414,1756230733806,-537.9,0.00028219,5]
[381484415,1756230733815,-400.0,0.00028219,5]
[381484416,1756230733825,-416.7,0.00028219,5]
[381484417,1756230733834,-400.0,0.00028219,5]
[381484418,1756230733843,-517.03,0.00028219,5]
[381484419,1756230733852,-400.0,0.00028219,5]
[381484420,1756230733861,-400.0,0.00028219,5]
[381484421,1756230733871,-1111.68,0.00028219,5]
[381484422,1756230733880,-531.53,0.00028219,5]
[381484423,1756230733889,-1203.47,0.00028219,5]
[381484424,1756230733898,-1302.16,0.00028219,5]
[381484425,1756230733908,-1324.35,0.00028219,5]
[381484426,1756230733917,-712.36,0.00028219,5]
[381484427,1756230733927,-400.0,0.00028219,5]
[381484428,1756230733937,-400.0,0.00028219,5]
[381484429,1756230733947,-1094.27,0.00028219,5]
[381484430,1756230733956,-1369.04,0.00028219,5]
[381484431,1756230733965,-400.0,0.00028219,5]
[381484432,1756230733974,-816.57,0.00028219,5]
[381484433,1756230733984,-694.38,0.00028219,5]
[381484434,1756230733993,-400.0,0.00028219,5]
[381484435,1756230734003,-1171.55,0.00028219,5]
[381484436,1756230734013,-636.59,0.00028219,5]
[381484437,1756230734022,-400.0,0.00028219,5]
[381484438,1756230734032,-400.0,0.00028219,5]
[381484439,1756230734041,-1500.0,0.00028219,28]
[381484440,1756230734050,-1500.0,0.00028219,28]
[381484441,1756230734059,-748.0,0.00028219,5]
[381484442,1756230734069,-1563.464284,0.00028219,28]
[381484443,1756230734079,-674.36,0.00028219,5]
[381484444,1756230734088,-737.97,0.00028219,5]
[381484445,1756230734098,-400.0,0.00028219,5]
[381484446,1756230734107,-637.3,0.00028219,5]
[381484447,1756230734116,-408.13,0.00028219,5]
[381484448,1756230734126,-400.0,0.00028219,5]
[381484449,1756230734135,-2696.16,0.00028219,5]
[381484450,1756230734145,-1342.91,0.00028219,5]
[381484451,1756230734154,-719.93,0.00028219,5]
[381484452,1756230734164,-400.0,0.00028219,5]
[381484453,1756230734174,-1267.69,0.00028219,5]
[381484454,1756230734184,-1012.86,0.00028219,5]
[381484455,1756230734194,-715.27,0.00028219,5]
[381484456,1756230734203,-1920.87,0.00028219,5]
[381484457,1756230734213,-754.15,0.00028219,5]
[381484458,1756230734222,-667.39,0.00028219,5]
[381484459,1756230734232,-400.0,0.00028219,5]
[381484460,1756230734243,-787.87,0.00028219,5]
[381484461,1756230734253,-1759.81,0.00028219,5]
[381484462,1756230734263,-400.0,0.00028219,5]
[381484463,1756230734273,-400.0,0.00028219,5]
[381484464,1756230734282,-1291.3,0.00028219,5]
[381484465,1756230734292,-400.0,0.00028219,5]
[381484466,1756230734301,-400.0,0.00028219,5]
[381484467,1756230734312,-1556.21,0.00028219,5]
[381484468,1756230734322,-400.0,0.00028219,5]
[381484469,1756230734331,-576.82,0.00028219,5]
[381484470,1756230734340,-400.0,0.00028219,5]
[381484471,1756230734349,-400.0,0.00028219,5]
[381484472,1756230734359,-5113.05,0.00028219,5]
[381484473,1756230734369,-400.0,0.00028219,5]
[381484474,1756230734378,-705.33,0.00028219,5]
[381484475,1756230734387,-654.53,0.00028219,5]
[381484476,1756230734396,-1041.63,0.00028219,5]
[381484477,1756230734406,-425.77,0.00028219,5]
[381484478,1756230734416,-312.1945,0.00028219,5]
[381484479,1756230734425,-1209.1,0.00028219,5]
[381484480,1756230734435,-400.0,0.00028219,5]
[381484481,1756230734444,-613.44,0.00028219,5]
[381484482,1756230734454,-1479.47,0.00028219,5]
[381484483,1756230734462,-400.0,0.00028219,5]
[381484484,1756230734471,-400.0,0.00028219,5]
[381484485,1756230734480,-400.0,0.00028219,5]
[381484486,1756230734491,-400.0,0.00028219,5]
[381484487,1756230734500,-1317.24,0.00028219,5]
[381484488,1756230734509,-762.16,0.00028219,5]
[381484489,1756230734518,-960.79,0.00028219,5]
[381484490,1756230734527,-400.0,0.00028219,5]
[381484491,1756230734537,-400.0,0.00028219,5]
[381484492,1756230734547,-1235.69,0.00028219,5]
[381484493,1756230734556,-1171.13,0.00028219,5]
[381484494,1756230734566,-630.41,0.00028219,5]
[381484495,1756230734575,-1512.33,0.00028219,5]
[381484496,1756230734584,-1303.22,0.00028219,5]
[381484497,1756230734593,-400.0,0.00028219,5]
[381484498,1756230734602,-386.34,0.00028219,5]
[381484499,1756230734611,-400.0,0.00028219,5]
[381484500,1756230734620,-1422.53,0.00028219,5]
[381484501,1756230734629,-856.1,0.00028219,5]
[381484502,1756230734638,-400.0,0.00028219,5]
[381484503,1756230734647,-792.6,0.00028219,5]
[381484504,1756230734656,-471.44,0.00028219,5]
[381484505,1756230734668,-1403.76,0.00028219,5]
[381484506,1756230734678,-1073.32,0.00028219,5]
[381484507,1756230734687,-400.0,0.00028219,5]
[381484508,1756230734696,-400.0,0.00028219,5]
[381484509,1756230734706,-1007.77,0.00028219,5]
[381484510,1756230734716,-1420.21,0.00028219,5]
[381484511,1756230734727,-952.45,0.00028219,5]
[381484512,1756230734737,-400.0,0.00028219,5]
[381484513,1756230734746,-400.0,0.00028219,5]
[381484514,1756230734757,-491.6,0.00028219,5]
[381484515,1756230734766,-1084.48,0.00028219,5]
[381484516,1756230734775,-2280.32,0.00028219,5]
[381484517,1756230734784,-1335.11,0.00028219,5]
[381484518,1756230734793,-400.0,0.00028219,5]
[381484519,1756230734802,-400.0,0.00028219,5]
[381484520,1756230734812,-1191.78,0.00028219,5]
[381484521,1756230734821,-475.29295885,0.00028219,5]
[381484522,1756230734831,-1238.64,0.00028219,5]
[381484523,1756230734841,-1124.09,0.00028219,5]
[381484524,1756230734851,-400.0,0.00028219,5]
[381484525,1756230734860,-1253.31,0.00028219,5]
[381484526,1756230734869,-1325.68,0.00028219,5]
[381484527,1756230734879,-938.22,0.00028219,5]
[381484528,1756230734888,-601.51,0.00028219,5]
[381484529,1756230734898,-499.47,0.00028219,5]
[381484530,1756230734907,-400.0,0.00028219,5]
[381484531,1756230734916,-400.0,0.00028219,5]
[381484532,1756230734926,-484.19,0.00028219,5]
[381484533,1756230734936,-400.0,0.00028219,5]
[381484534,1756230734945,-797.42,0.00028219,5]
[381484535,1756230734956,-737.11,0.00028219,5]
[381484536,1756230734966,-703.79,0.00028219,5]
[381484537,1756230734975,-1575.39,0.00028219,5]
[381484538,1756230734984,-680.36,0.00028219,5]
[381484539,1756230734994,-672.12,0.00028219,5]
[381484540,1756230735006,-759.87,0.00028219,5]
[381484541,1756230735016,-926.18,0.00028219,5]
[381484542,1756230735026,-400.0,0.00028219,5]
[381484543,1756230735036,-400.0,0.00028219,5]
[381484544,1756230735045,-400.0,0.00028219,5]
[381484545,1756230735054,-618.83,0.00028219,5]
[381484546,1756230735065,-862.99,0.00028219,5]
[381484547,1756230735194,-400.0,0.00028219,5]
[381484548,1756230735217,-1447.2,0.00028219,5]
[381484549,1756230735228,-400.7859602,0.00028219,5]
[381484550,1756230735240,-1075.04,0.00028219,5]
[381484551,1756230735249,-1260.62,0.00028219,5]
[381484552,1756230735259,-575.53,0.00028219,5]
[381484553,1756230735270,-489.17,0.00028219,5]
[381484554,1756230735279,-845.06,0.00028219,5]
[381484555,1756230735290,-1238.05,0.00028219,5]
[381484556,1756230735299,-365.669854,0.00028219,5]
[381484557,1756230735308,-1102.7,0.00028219,5]
[381484558,1756230735318,-500.0,0.00028219,10]
[381484559,1756230735327,-1359.79,0.00028219,5]
[381484560,1756230735336,-820.48,0.00028219,5]
[381484561,1756230735346,-1712.23,0.00028219,5]
[381484562,1756230735357,-1138.32,0.00028219,5]
[381484563,1756230735366,-510.0,0.00028219,5]
[381484564,1756230735375,-717.51,0.00028219,5]
[381484565,1756230735385,-690.59,0.00028219,5]
[381484566,1756230735395,-400.0,0.00028219,5]
[381484567,1756230735404,-400.0,0.00028219,5]
[381484568,1756230735413,-400.0,0.00028219,5]
[381484569,1756230735423,-400.0,0.00028219,5]
[381484570,1756230735433,-400.0,0.00028219,5]
[381484571,1756230735442,-956.27,0.00028219,5]
[381484572,1756230735452,-1643.75,0.00028219,5]
[381484573,1756230735461,-403.1738656,0.00028219,5]
[381484574,1756230735470,-702.95,0.00028219,5]
[381484575,1756230735480,-1080.95,0.00028219,5]
[381484576,1756230735491,-400.0,0.00028219,5]
[381484577,1756230735500,-704.75,0.00028219,5]
[381484578,1756230735510,-1188.76,0.00028219,5]
[381484579,1756230735519,-830.28,0.00028219,5]
[381484580,1756230735528,-400.0,0.00028219,5]
[381484581,1756230735537,-884.15,0.00028219,5]
[381484582,1756230735547,-883.77,0.00028219,5]
[381484583,1756230735556,-4381.4,0.00028219,5]
[381484584,1756230735565,-903.37,0.00028219,5]
[381484585,1756230735575,-1272.98,0.00028219,5]
[381484586,1756230735587,-400.0,0.00028219,5]
[381484587,1756230735596,-400.0,0.00028219,5]
[381484588,1756230735605,-400.0,0.00028219,5]
[381484589,1756230735615,-1035.82,0.00028219,5]
[381484590,1756230735625,-440.04,0.00028219,5]
[381484591,1756230735634,-588.09,0.00028219,5]
[381484592,1756230735643,-1060.85,0.00028219,5]
[381484593,1756230735654,-729.67,0.00028219,5]
[381484594,1756230735666,-734.09,0.00028219,5]
[381484595,1756230735675,-818.36,0.00028219,5]
[381484596,1756230735684,-256.1972904,0.00028219,5]
[381484597,1756230735695,-1006.17,0.00028219,5]
[381484598,1756230735704,-538.84,0.00028219,5]
[381484599,1756230735713,-752.5,0.00028219,5]
[381484600,1756230735722,-1343.19,0.00028219,5]
[381484601,1756230735732,-1000.26,0.00028219,5]
[381484602,1756230735743,-400.0,0.00028219,5]
[381484603,1756230735753,-400.0,0.00028219,5]
[381484604,1756230735762,-1006.41,0.00028219,5]
[381484605,1756230735771,-927.58,0.00028219,5]
[381484606,1756230735783,-465.25,0.00028219,5]
[381484607,1756230735793,-1229.66,0.00028219,5]
[381484608,1756230735805,-819.77,0.00028219,5]
[381484609,1756230735815,-574.94,0.00028219,5]
[381484610,1756230735825,-1087.43,0.00028219,5]
[381484611,1756230735836,-400.0,0.00028219,5]
[381484612,1756230735846,-1561.08,0.00028219,5]
[381484613,1756230735855,-605.76,0.00028219,5]
[381484614,1756230735865,-633.29,0.00028219,5]
[381484615,1756230735874,-673.66,0.00028219,5]
[381484616,1756230735884,-1303.8,0.00028219,5]
[381484617,1756230735894,-951.85,0.00028219,5]
[381484618,1756230735903,-727.97,0.00028219,5]
[381484619,1756230735914,-400.0,0.00028219,5]
[381484620,1756230735923,-761.39,0.00028219,5]
[381484621,1756230735934,-823.04,0.00028219,5]
[381484622,1756230735944,-995.91,0.00028219,5]
[381484623,1756230735954,-726.7,0.00028219,5]
[381484624,1756230735964,-2954.18,0.00028219,5]
[381484625,1756230735973,-932.17,0.00028219,5]
[381484626,1756230735983,-777.25,0.00028219,5]
[381484627,1756230735993,-810.82,0.00028219,5]
[381484628,1756230736004,-674.55,0.00028219,5]
[381484629,1756230736015,-400.0,0.00028219,5]
[381484630,1756230736026,-400.0,0.00028219,5]
[381484631,1756230736038,-524.65,0.00028219,5]
[381484632,1756230736049,-894.99,0.00028219,5]
[381484633,1756230736059,-610.96,0.00028219,5]
[381484634,1756230736069,-400.0,0.00028219,5]
[381484635,1756230736079,-433.22,0.00028219,5]
[381484636,1756230736089,-1276.0,0.00028219,5]
[381484637,1756230736099,-705.71,0.00028219,5]
[381484638,1756230736110,-1048.88,0.00028219,5]
[381484639,1756230736119,-916.09,0.00028219,5]
[381484640,1756230736128,-635.0,0.00028219,5]
[381484641,1756230736138,-400.0,0.00028219,5]
[381484642,1756230736148,-1476.54,0.00028219,5]
[381484643,1756230736157,-735.88,0.00028219,5]
[381484644,1756230736167,-586.32,0.00028219,5]
[381484645,1756230736176,-420.01,0.00028219,5]
[381484646,1756230736186,-1424.15,0.00028219,5]
[381484647,1756230736195,-865.15,0.00028219,5]
[381484648,1756230736205,-400.0,0.00028219,5]
[381484649,1756230736214,-711.61,0.00028219,5]
[381484650,1756230736223,-400.0,0.00028219,5]
[381484651,1756230736233,-400.0,0.00028219,5]
[381484652,1756230736243,-657.69,0.00028219,5]
[381484653,1756230736254,-2547.01,0.00028219,5]
[381484654,1756230736264,-569.85,0.00028219,5]
[381484655,1756230736274,-924.7,0.00028219,5]
[381484656,1756230736284,-1447.41,0.00028219,5]
[381484657,1756230736294,-240.47728304,0.00028219,5]
[381484658,1756230736304,-947.0,0.00028219,5]
[381484659,1756230736314,-1125.16,0.00028219,5]
[381484660,1756230736326,-1186.06,0.00028219,5]
[381484661,1756230736336,-1017.63,0.00028219,5]
[381484662,1756230736346,-509.43,0.00028219,5]
[381484663,1756230736356,-629.18,0.00028219,5]
[381484664,1756230736365,-1490.01,0.00028219,5]
[381484665,1756230736375,-1054.6,0.00028219,5]
[381484666,1756230736384,-516.44,0.00028219,5]
[381484667,1756230736394,-682.69,0.00028219,5]
[381484668,1756230736403,-810.92,0.00028219,5]
[381484669,1756230736412,-1009.65,0.00028219,5]
[381484670,1756230736423,-883.73,0.00028219,5]
[381484671,1756230736433,-1283.33,0.00028219,5]
[381484672,1756230736442,-1591.74,0.00028219,5]
[381484673,1756230736451,-817.88,0.00028219,5]
[381484674,1756230736460,-657.14,0.00028219,5]
[381484675,1756230736470,-559.69,0.00028219,5]
[381484676,1756230736480,-400.0,0.00028219,5]
[381484677,1756230736491,-434.49,0.00028219,5]
[381484678,1756230736500,-543.23,0.00028219,5]
[381484679,1756230736510,-839.27,0.00028219,5]
[381484680,1756230736519,-400.0,0.00028219,5]
[381484681,1756230736529,-694.48,0.00028219,5]
[381484682,1756230736538,-1164.11,0.00028219,5]
[381484683,1756230736548,-400.0,0.00028219,5]
[381484684,1756230736558,-2471.18,0.00028219,5]
[381484685,1756230736568,-735.71,0.00028219,5]
[381484686,1756230736577,-923.85,0.00028219,5]
[381484687,1756230736587,-602.76,0.00028219,5]
[381484688,1756230736597,-400.0,0.00028219,5]
[381484689,1756230736607,-1015.23,0.00028219,5]
[381484690,1756230736616,-1297.06,0.00028219,5]
[381484691,1756230736626,-400.0,0.00028219,5]
[381484692,1756230736635,-400.0,0.00028219,5]
[381484693,1756230736644,-1022.18,0.00028219,5]
[381484694,1756230736654,-413.82,0.00028219,5]
[381484695,1756230736668,-400.0,0.00028219,5]
[381484696,1756230736678,-400.0,0.00028219,5]
[381484697,1756230736688,-677.17,0.00028219,5]
[381484698,1756230736698,-435.62,0.00028219,5]
[381484699,1756230736709,-481.79,0.00028219,5]
[381484700,1756230736718,-869.43,0.00028219,5]
[381484701,1756230736728,-400.0,0.00028219,5]
[381484702,1756230736737,-400.0,0.00028219,5]
[381484703,1756230736747,-1587.32,0.00028219,5]
[381484704,1756230736757,-404.82,0.00028219,5]
[381484705,1756230736766,-1419.4,0.00028219,5]
[381484706,1756230736775,-795.96,0.00028219,5]
[381484707,1756230736785,-400.0,0.00028219,5]